fUSD/lending_fUSD_20240420
["ID","MTS","AMOUNT","RATE_DAILY","PERIOD"]
[322990755,1713576645718,-500.0,0.00015068,2]
[322990756,1713576645727,-500.0,0.00015068,2]
[322990757,1713576645736,-1280.9,0.00015068,2]
[322990758,1713576645748,-500.0,0.00015068,2]
[322990759,1713576645758,-3146.85,0.00015068,2]
[322990760,1713576645767,-500.0,0.00015068,2]
[322990761,1713576645781,-500.0,0.00015068,2]
[322990762,1713576645790,-500.0,0.00015068,2]
[322990763,1713576645799,-500.0,0.00015068,2]
[322990765,1713576645808,-500.0,0.00015068,2]
[322990767,1713576645818,-432.66339644,0.00015068,2]
[322990768,1713576645827,-3057.1,0.00015068,2]
[322990769,1713576645836,-500.0,0.00015068,2]
[322990770,1713576645845,-1107.74,0.00015068,2]
[322990771,1713576645854,-571.8472961,0.00015068,2]
[322990772,1713576645863,-505.9,0.00015068,2]
[322990773,1713576645873,-577.86,0.00015068,2]
[322990774,1713576645884,-500.0,0.00015068,2]
[322990775,1713576645894,-500.0,0.00015068,2]
[322990776,1713576645904,-500.0,0.00015068,2]
[322990777,1713576645915,-500.0,0.00015068,2]
[322990778,1713576645925,-1180.65,0.00015068,2]
[322990779,1713576645935,-500.0,0.00015068,2]
[322990780,1713576645946,-500.0,0.00015068,2]
[322990781,1713576645956,-3035.56,0.00015068,2]
[322990782,1713576645965,-1101.21,0.00015068,2]
[322990783,1713576645976,-500.0,0.00015068,2]
[322990784,1713576645989,-2728.73,0.00015068,2]
[322990785,1713576646000,-500.0,0.00015068,2]
[322990786,1713576646018,-2571.5,0.00015068,2]
[322990787,1713576646032,-628.83,0.00015068,2]
[322990788,1713576646044,-1093.12,0.00015068,2]
[322990789,1713576646054,-500.0,0.00015068,2]
[322990790,1713576646064,-954.51,0.00015068,2]
[322990791,1713576646074,-500.0,0.00015068,2]
[322990792,1713576646086,-500.0,0.00015068,2]
[322990793,1713576646098,-1798.65,0.00015068,2]
[322990794,1713576646108,-585.90981726,0.00015068,2]
[322990795,1713576646119,-500.0,0.00015068,2]
[322990796,1713576646129,-500.0,0.00015068,2]
[322990797,1713576646141,-574.0,0.00015068,2]
[322990798,1713576646151,-500.0,0.00015068,2]
[322990799,1713576646161,-500.0,0.00015068,2]
[322990800,1713576646171,-1043.04,0.00015068,2]
[322990801,1713576646181,-3571.68,0.00015068,2]
[322990802,1713576646191,-500.0,0.00015068,2]
[322990803,1713576646200,-3406.52,0.00015068,2]
[322990804,1713576646210,-1020.3,0.00015068,2]
[322990805,1713576646220,-1198.31,0.00015068,2]
[322990806,1713576646229,-500.0,0.00015068,2]
[322990807,1713576646239,-1406.49,0.00015068,2]
[322990808,1713576646248,-161.96090441,0.00015068,2]
[322990809,1713576646260,-5126.27,0.00015068,2]
[322990810,1713576646272,-500.0,0.00015068,2]
[322990811,1713576646281,-3434.58,0.00015068,2]
[322990812,1713576646291,-628.18031189,0.00015068,2]
[322990813,1713576646301,-1765.73,0.00015068,2]
[322990814,1713576646311,-2262.08,0.00015068,2]
[322990815,1713576646322,-529.61,0.00015068,2]
[322990816,1713576646333,-583.24,0.00015068,2]
[322990817,1713576646343,-604.75,0.00015068,2]
[322990818,1713576646353,-500.0,0.00015068,2]
[322990819,1713576646363,-1336.75,0.00015068,2]
[322990820,1713576646373,-500.0,0.00015068,2]
[322990821,1713576646383,-2010.13,0.00015068,2]
[322990822,1713576646393,-922.06,0.00015068,2]
[322990823,1713576646403,-500.0,0.00015068,2]
[322990824,1713576646413,-937.19,0.00015068,2]
[322990825,1713576646422,-1931.02,0.00015068,2]
[322990826,1713576646432,-694.69,0.00015068,2]
[322990827,1713576646443,-6020.51,0.00015068,2]
[322990828,1713576646452,-537.88,0.00015068,2]
[322990829,1713576646462,-500.0,0.00015068,2]
[322990830,1713576646472,-724.85,0.00015068,2]
[322990831,1713576646481,-2260.86,0.00015068,2]
[322990832,1713576646491,-1304.79,0.00015068,2]
[322990833,1713576646501,-500.0,0.00015068,2]
[322990834,1713576646511,-661.57,0.00015068,2]
[322990835,1713576646524,-500.0,0.00015068,2]
[322990836,1713576646535,-622.44,0.00015068,2]
[322990837,1713576646545,-1213.01,0.00015068,2]
[322990838,1713576646555,-500.0,0.00015068,2]
[322990839,1713576646565,-5167.6,0.00015068,2]
[322990840,1713576646575,-1435.35,0.00015068,2]
[322990841,1713576646584,-2585.08,0.00015068,2]
[322990842,1713576646594,-500.0,0.00015068,2]
[322990843,1713576646604,-781.01,0.00015068,2]
[322990844,1713576646614,-2495.14,0.00015068,2]
[322990845,1713576646624,-3064.64,0.00015068,2]
[322990846,1713576646634,-758.82,0.00015068,2]
[322990847,1713576646644,-500.0,0.00015068,2]
[322990848,1713576646654,-1062.21,0.00015068,2]
[322990849,1713576646663,-1821.76,0.00015068,2]
[322990850,1713576646673,-2938.3,0.00015068,2]
[322990851,1713576646683,-1425.56,0.00015068,2]
[322990852,1713576646693,-500.0,0.00015068,2]
[322990853,1713576646702,-500.0,0.00015068,2]
[322990854,1713576646712,-650.99,0.00015068,2]
[322990855,1713576646721,-759.02,0.00015068,2]
[322990856,1713576646731,-2975.3,0.00015068,2]
[322990857,1713576646740,-888.35,0.00015068,2]
[322990858,1713576646752,-2951.98,0.00015068,2]
[322990859,1713576646762,-914.45,0.00015068,2]
[322990860,1713576646773,-1097.63,0.00015068,2]
[322990861,1713576646783,-500.0,0.00015068,2]
[322990862,1713576646794,-819.05,0.00015068,2]
[322990863,1713576646803,-500.0,0.00015068,2]
[322990864,1713576646813,-500.0,0.00015068,2]
[322990865,1713576646823,-997.53,0.00015068,2]
[322990866,1713576646833,-1768.75,0.00015068,2]
[322990867,1713576646844,-826.49,0.00015068,2]
[322990868,1713576646854,-515.09,0.00015068,2]
[322990869,1713576646863,-3178.46,0.00015068,2]
[322990870,1713576646873,-897.23,0.00015068,2]
[322990871,1713576646882,-4950.68,0.00015068,2]
[322990872,1713576646892,-500.0,0.00015068,2]
[322990873,1713576646902,-854.67,0.00015068,2]
[322990874,1713576646912,-6195.5,0.00015068,2]
[322990875,1713576646921,-500.0,0.00015068,2]
[322990876,1713576646931,-500.0,0.00015068,2]
[322990877,1713576646940,-503.35062921,0.00015068,2]
[322990878,1713576646950,-181.96180996,0.00015068,2]
[322990879,1713576646960,-1040.0,0.00015068,2]
[322990880,1713576646970,-500.0,0.00015068,2]
[322990881,1713576646980,-500.0,0.00015068,2]
[322990882,1713576646990,-5433.1,0.00015068,2]
[322990883,1713576646999,-524.2,0.00015068,2]
[322990884,1713576647010,-500.0,0.00015068,2]
[322990885,1713576647019,-4710.32,0.00015068,2]
[322990886,1713576647029,-500.0,0.00015068,2]
[322990887,1713576647038,-500.0,0.00015068,2]
[322990888,1713576647047,-966.35,0.00015068,2]
[322990889,1713576647057,-2119.06,0.00015068,2]
[322990890,1713576647066,-173.44205982,0.00015068,2]
[322990891,1713576647076,-500.0,0.00015068,2]
[322990892,1713576647085,-621.89,0.00015068,2]
[322990893,1713576647094,-547.64,0.00015068,2]
[322990894,1713576647104,-500.0,0.00015068,2]
[322990895,1713576647113,-500.0,0.00015068,2]
[322990896,1713576647123,-500.0,0.00015068,2]
[322990897,1713576647132,-500.0,0.00015068,2]
[322990898,1713576647141,-500.0,0.00015068,2]
[322990899,1713576647151,-500.0,0.00015068,2]
[322990900,1713576647160,-1972.64,0.00015068,2]
[322990901,1713576647170,-500.0,0.00015068,2]
[322990902,1713576647179,-942.96,0.00015068,2]
[322990903,1713576647188,-2130.08,0.00015068,2]
[322990904,1713576647197,-9602.05,0.00015068,2]
[322990905,1713576647207,-1611.92,0.00015068,2]
[322990906,1713576647216,-703.68,0.00015068,2]
[322990907,1713576647226,-500.0,0.00015068,2]
[322990908,1713576647235,-8580.94,0.00015068,2]
[322990909,1713576647245,-1554.78,0.00015068,2]
[322990910,1713576647260,-819.57,0.00015068,2]
[322990911,1713576647272,-500.0,0.00015068,2]
[322990912,1713576647281,-500.0,0.00015068,2]
[322990913,1713576647292,-500.0,0.00015068,2]
[322990914,1713576647302,-500.0,0.00015068,2]
[322990915,1713576647311,-663.88,0.00015068,2]
[322990916,1713576647322,-1198.48,0.00015068,2]
[322990917,1713576647332,-500.0,0.00015068,2]
[322990918,1713576647344,-613.94,0.00015068,2]
[322990919,1713576647353,-11272.91,0.00015068,2]
[322990920,1713576647363,-500.0,0.00015068,2]
[322990921,1713576647374,-500.0,0.00015068,2]
[322990922,1713576647385,-500.0,0.00015068,2]
[322990923,1713576647396,-1018.73,0.00015068,2]
[322990924,1713576647406,-305.512801,0.00015068,2]
[322990925,1713576647415,-3134.34,0.00015068,2]
[322990926,1713576647426,-32480.16,0.00015068,2]
[322990927,1713576647437,-500.0,0.00015068,2]
[322990928,1713576647446,-573.55,0.00015068,2]
[322990929,1713576647456,-3966.47,0.00015068,2]
[322990930,1713576647466,-406.61924549,0.00015164,2]
[322990931,1713576648223,-1766.45927462,0.00015164,2]
[322990932,1713576648235,-174.20494602,0.00015242,2]
[322990933,1713576648245,-426.70228372,0.00015332,2]
[322990934,1713576648258,-12202.58416914,0.00015341,2]
[322990935,1713576648268,-785.58843159,0.00015341,2]
[322990936,1713576648278,-2775.04,0.00015341,2]
[322990937,1713576648288,-3367.18,0.00015341,2]
[322990938,1713576648299,-23027.96,0.00015341,2]
[322990939,1713576648309,-500.0,0.00015341,2]
[322990940,1713576648319,-3112.11,0.00015341,2]
[322990941,1713576648328,-3278.45,0.00015341,2]
[322990942,1713576648338,-500.0,0.00015342,2]
[322990943,1713576648350,-744.78,0.00015342,2]
[322990944,1713576648360,-500.0,0.00015342,2]
[322990945,1713576648369,-703.77,0.00015342,2]
[322990946,1713576648378,-500.0,0.00015342,2]
[322990947,1713576648389,-500.0,0.00015342,2]
[322990948,1713576648399,-500.0,0.00015342,2]
[322990949,1713576648408,-541.68,0.00015342,2]
[322990950,1713576648418,-500.0,0.00015342,2]
[322990951,1713576648427,-500.0,0.00015342,2]
[322990952,1713576648437,-500.0,0.00015342,2]
[322990953,1713576648447,-500.0,0.00015342,2]
[322990954,1713576648456,-500.0,0.00015342,2]
[322990955,1713576648466,-575.6,0.00015342,2]
[322990956,1713576648474,-500.0,0.00015342,2]
[322990957,1713576648485,-500.0,0.00015342,2]
[322990958,1713576648495,-500.0,0.00015342,2]
[322990959,1713576648504,-500.0,0.00015342,2]
[322990960,1713576648514,-500.0,0.00015342,2]
[322990961,1713576648525,-500.0,0.00015342,2]
[322990962,1713576648535,-500.0,0.00015342,2]
[322990963,1713576648545,-500.0,0.00015342,2]
[322990964,1713576648555,-616.76,0.00015342,2]
[322990965,1713576648564,-994.32,0.00015342,2]
[322990966,1713576648573,-539.1888251,0.00015342,2]
[322990967,1713576648582,-500.0,0.00015342,2]
[322990968,1713576648591,-500.0,0.00015342,2]
[322990969,1713576648601,-500.0,0.00015342,2]
[322990970,1713576648610,-500.0,0.00015342,2]
[322990971,1713576648619,-500.0,0.00015342,2]
[322990972,1713576648628,-500.0,0.00015342,2]
[322990973,1713576648638,-1051.15,0.00015342,2]
[322990974,1713576648648,-500.0,0.00015342,2]
[322990975,1713576648658,-500.0,0.00015342,2]
[322990976,1713576648667,-499.52779189,0.00015342,2]
[322990977,1713576648677,-500.0,0.00015342,2]
[322990978,1713576648689,-1254.67,0.00015342,2]
[322990979,1713576648700,-500.0,0.00015342,2]
[322990980,1713576648710,-531.1,0.00015342,2]
[322990981,1713576648719,-500.0,0.00015342,2]
[322990982,1713576648729,-500.0,0.00015342,2]
[322990983,1713576648739,-500.0,0.00015342,2]
[322990984,1713576648748,-511.27702494,0.00015342,2]
[322990985,1713576648760,-500.0,0.00015342,2]
[322990986,1713576648774,-622.50887294,0.00015342,2]
[322990987,1713576648783,-924.98,0.00015342,2]
[322990988,1713576648792,-1356.81,0.00015342,2]
[322990989,1713576648801,-500.0,0.00015342,2]
[322990990,1713576648810,-500.0,0.00015342,2]
[322990991,1713576648819,-730.68,0.00015342,2]
[322990992,1713576648828,-500.0,0.00015342,2]
[322990993,1713576648837,-551.05,0.00015342,2]
[322990994,1713576648846,-500.0,0.00015342,2]
[322990995,1713576648857,-500.0,0.00015342,2]
[322990996,1713576648866,-500.0,0.00015342,2]
[322990997,1713576648875,-500.0,0.00015342,2]
[322990998,1713576648884,-500.0,0.00015342,2]
[322990999,1713576648893,-500.0,0.00015342,2]
[322991000,1713576648902,-500.0,0.00015342,2]
[322991001,1713576648911,-500.0,0.00015342,2]
[322991002,1713576648920,-642.49,0.00015342,2]
[322991003,1713576648929,-500.0,0.00015342,2]
[322991004,1713576648938,-500.0,0.00015342,2]
[322991005,1713576648948,-500.0,0.00015342,2]
[322991006,1713576648957,-500.0,0.00015342,2]
[322991007,1713576648966,-500.0,0.00015342,2]
[322991008,1713576648975,-500.0,0.00015342,2]
[322991009,1713576648984,-979.77,0.00015342,2]
[322991010,1713576648994,-500.0,0.00015342,2]
[322991011,1713576649003,-500.0,0.00015342,2]
[322991012,1713576649012,-628.26,0.00015342,2]
[322991013,1713576649023,-728.76,0.00015342,2]
[322991014,1713576649032,-501.0,0.00015342,2]
[322991015,1713576649041,-500.0,0.00015342,2]
[322991016,1713576649051,-693.75,0.00015342,2]
[322991017,1713576649060,-500.0,0.00015342,2]
[322991018,1713576649070,-500.0,0.00015342,2]
[322991019,1713576649079,-500.0,0.00015342,2]
[322991020,1713576649088,-500.0,0.00015342,2]
[322991021,1713576649098,-655.64,0.00015342,2]
[322991022,1713576649109,-786.35,0.00015342,2]
[322991023,1713576649120,-578.85,0.00015342,2]
[322991024,1713576649134,-604.6,0.00015342,2]
[322991025,1713576649149,-605.38,0.00015342,2]
[322991026,1713576649159,-570.31,0.00015342,2]
[322991027,1713576649168,-500.0,0.00015342,2]
[322991028,1713576649177,-500.0,0.00015342,2]
[322991029,1713576649186,-500.0,0.00015342,2]
[322991030,1713576649195,-554.51,0.00015342,2]
[322991031,1713576649204,-500.0,0.00015342,2]
[322991032,1713576649214,-500.0,0.00015342,2]
[322991033,1713576649223,-500.0,0.00015342,2]
[322991034,1713576649232,-931.67,0.00015342,2]
[322991035,1713576649241,-500.0,0.00015342,2]
[322991036,1713576649252,-813.68,0.00015342,2]
[322991037,1713576649263,-683.05,0.00015342,2]
[322991038,1713576649274,-1580.81,0.00015342,2]
[322991039,1713576649284,-500.0,0.00015342,2]
[322991040,1713576649294,-500.0,0.00015342,2]
[322991041,1713576649303,-510.11,0.00015342,2]
[322991042,1713576649312,-500.0,0.00015342,2]
[322991043,1713576649324,-916.44,0.00015342,2]
[322991044,1713576649335,-500.0,0.00015342,2]
[322991045,1713576649344,-500.0,0.00015342,2]
[322991046,1713576649354,-399.40419481,0.00015342,2]
[322991047,1713576649363,-519.85,0.00015342,2]
[322991048,1713576649373,-1546.32,0.00015342,2]
[322991049,1713576649383,-500.0,0.00015342,2]
[322991050,1713576649392,-500.0,0.00015342,2]
[322991051,1713576649401,-500.0,0.00015342,2]
[322991052,1713576649410,-150.0,0.00015342,2]
[322991053,1713576649420,-208.94844925,0.00015342,2]
[322991054,1713576649429,-500.0,0.00015342,2]
[322991055,1713576649438,-630.44,0.00015342,2]
[322991056,1713576649447,-536.0888706,0.00015342,2]
[322991057,1713576649456,-594.12,0.00015342,2]
[322991058,1713576649465,-1353.41,0.00015342,2]
[322991059,1713576649474,-500.0,0.00015342,2]
[322991060,1713576649484,-500.0,0.00015342,2]
[322991061,1713576649493,-500.0,0.00015342,2]
[322991062,1713576649502,-500.0,0.00015342,2]
[322991063,1713576649512,-500.0,0.00015342,2]
[322991064,1713576649525,-500.0,0.00015342,2]
[322991065,1713576649534,-930.38,0.00015342,2]
[322991066,1713576649543,-629.56,0.00015342,2]
[322991067,1713576649552,-807.56,0.00015342,2]
[322991068,1713576649562,-500.0,0.00015342,2]
[322991069,1713576649571,-500.0,0.00015342,2]
[322991070,1713576649581,-500.0,0.00015342,2]
[322991071,1713576649591,-500.0,0.00015342,2]
[322991072,1713576649603,-500.0,0.00015342,2]
[322991073,1713576649613,-516.5360054,0.00015342,2]
[322991074,1713576649623,-500.0,0.00015342,2]
[322991075,1713576649634,-500.0,0.00015342,2]
[322991076,1713576649643,-798.43,0.00015342,2]
[322991077,1713576649654,-500.0,0.00015342,2]
[322991078,1713576649664,-500.0,0.00015342,2]
[322991079,1713576649675,-500.0,0.00015342,2]
[322991080,1713576649685,-734.3,0.00015342,2]
[322991081,1713576649695,-500.0,0.00015342,2]
[322991082,1713576649705,-500.0,0.00015342,2]
[322991083,1713576649714,-1058.72,0.00015342,2]
[322991084,1713576649724,-500.0,0.00015342,2]
[322991085,1713576649734,-500.0,0.00015342,2]
[322991086,1713576649743,-500.0,0.00015342,2]
[322991087,1713576649755,-671.97,0.00015342,2]
[322991088,1713576649765,-1053.61,0.00015342,2]
[322991089,1713576649786,-596.23,0.00015342,2]
[322991090,1713576649796,-572.13,0.00015342,2]
[322991091,1713576649807,-500.0,0.00015342,2]
[322991092,1713576649816,-510.72,0.00015342,2]
[322991093,1713576649826,-500.0,0.00015342,2]
[322991094,1713576649836,-500.0,0.00015342,2]
[322991095,1713576649845,-755.46,0.00015342,2]
[322991096,1713576649855,-500.0,0.00015342,2]
[322991097,1713576649864,-763.77,0.00015342,2]
[322991098,1713576649874,-1056.92,0.00015342,2]
[322991099,1713576649884,-500.0,0.00015342,2]
[322991100,1713576649893,-904.36,0.00015342,2]
[322991101,1713576649904,-636.76,0.00015342,2]
[322991102,1713576649913,-500.0,0.00015342,2]
[322991103,1713576649923,-500.0,0.00015342,2]
[322991104,1713576649933,-500.0,0.00015342,2]
[322991105,1713576649943,-500.0,0.00015342,2]
[322991106,1713576649952,-500.0,0.00015342,2]
[322991107,1713576649962,-1727.18,0.00015342,2]
[322991108,1713576649971,-704.56,0.00015342,2]
[322991109,1713576649980,-560.17,0.00015342,2]
[322991110,1713576649989,-500.0,0.00015342,2]
[322991111,1713576649999,-719.62,0.00015342,2]
[322991112,1713576650008,-918.64,0.00015342,2]
[322991113,1713576650017,-500.0,0.00015342,2]
[322991114,1713576650037,-1071.21,0.00015342,2]
[322991115,1713576650046,-500.84389743,0.00015342,2]
[322991116,1713576650056,-500.0,0.00015342,2]
[322991117,1713576650065,-869.52,0.00015342,2]
[322991118,1713576650075,-500.0,0.00015342,2]
[322991119,1713576650084,-500.0,0.00015342,2]
[322991120,1713576650093,-500.0,0.00015342,2]
[322991121,1713576650103,-1477.13,0.00015342,2]
[322991122,1713576650112,-235.73,0.00015342,2]
[322991123,1713576650121,-509.3,0.00015342,2]
[322991124,1713576650131,-500.0,0.00015342,2]
[322991125,1713576650140,-500.0,0.00015342,2]
[322991126,1713576650148,-500.0,0.00015342,2]
[322991127,1713576650157,-500.0,0.00015342,2]
[322991128,1713576650166,-604.99,0.00015342,2]
[322991129,1713576650175,-500.0,0.00015342,2]
[322991130,1713576650185,-500.0,0.00015342,2]
[322991131,1713576650194,-500.0,0.00015342,2]
[322991132,1713576650204,-500.0,0.00015342,2]
[322991133,1713576650214,-890.89,0.00015342,2]
[322991134,1713576650223,-500.0,0.00015342,2]
[322991135,1713576650232,-861.68,0.00015342,2]
[322991136,1713576650246,-504.73,0.00015342,2]
[322991137,1713576650260,-500.0,0.00015342,2]
[322991138,1713576650270,-500.0,0.00015342,2]
[322991139,1713576650289,-717.17,0.00015342,2]
[322991140,1713576650299,-500.0,0.00015342,2]
[322991141,1713576650308,-500.0,0.00015342,2]
[322991142,1713576650317,-500.0,0.00015342,2]
[322991143,1713576650327,-500.0,0.00015342,2]
[322991144,1713576650337,-500.0,0.00015342,2]
[322991145,1713576650346,-225.71729257,0.00015342,2]
[322991146,1713576650355,-1187.8,0.00015342,2]
[322991147,1713576650364,-805.26,0.00015342,2]
[322991148,1713576650374,-851.5,0.00015342,2]
[322991149,1713576650383,-500.0,0.00015342,2]
[322991150,1713576650393,-747.39,0.00015342,2]
[322991151,1713576650402,-744.34,0.00015342,2]
[322991152,1713576650412,-500.0,0.00015342,2]
[322991153,1713576650421,-1193.76,0.00015342,2]
[322991154,1713576650431,-500.0,0.00015342,2]
[322991155,1713576650441,-500.0,0.00015342,2]
[322991156,1713576650451,-500.0,0.00015342,2]
[322991157,1713576650462,-500.0,0.00015342,2]
[322991158,1713576650471,-500.0,0.00015342,2]
[322991159,1713576650481,-500.0,0.00015342,2]
[322991160,1713576650491,-1466.88,0.00015342,2]
[322991161,1713576650501,-598.28,0.00015342,2]
[322991162,1713576650511,-935.76,0.00015342,2]
[322991163,1713576650526,-500.0,0.00015342,2]
[322991164,1713576650536,-500.0,0.00015342,2]
[322991165,1713576650545,-1692.22,0.00015342,2]
[322991166,1713576650554,-500.0,0.00015342,2]
[322991167,1713576650563,-500.0,0.00015342,2]
[322991168,1713576650573,-500.0,0.00015342,2]
[322991169,1713576650583,-500.0,0.00015342,2]
[322991170,1713576650592,-500.0,0.00015342,2]
[322991171,1713576650601,-500.0,0.00015342,2]
[322991172,1713576650611,-500.0,0.00015342,2]
[322991173,1713576650620,-1652.38,0.00015342,2]
[322991174,1713576650630,-897.2,0.00015342,2]
[322991175,1713576650639,-971.78,0.00015342,2]
[322991176,1713576650649,-1489.41,0.00015342,2]
[322991177,1713576650658,-500.0,0.00015342,2]
[322991178,1713576650668,-500.0,0.00015342,2]
[322991179,1713576650678,-500.0,0.00015342,2]
[322991180,1713576650687,-500.0,0.00015342,2]
[322991181,1713576650697,-905.73,0.00015342,2]
[322991182,1713576650706,-596.24,0.00015342,2]
[322991183,1713576650716,-500.0,0.00015342,2]
[322991184,1713576650725,-500.0,0.00015342,2]
[322991185,1713576650734,-518.36,0.00015342,2]
[322991186,1713576650744,-882.07,0.00015342,2]
[322991187,1713576650754,-921.31,0.00015342,2]
[322991188,1713576650763,-548.88,0.00015342,2]
[322991189,1713576650775,-561.49,0.00015342,2]
[322991190,1713576650784,-500.0,0.00015342,2]
[322991191,1713576650794,-500.0,0.00015342,2]
[322991192,1713576650803,-500.0,0.00015342,2]
[322991193,1713576650813,-779.19,0.00015342,2]
[322991194,1713576650824,-591.19,0.00015342,2]
[322991195,1713576650834,-725.3,0.00015342,2]
[322991196,1713576650845,-705.92,0.00015342,2]
[322991197,1713576650856,-500.0,0.00015342,2]
[322991198,1713576650867,-694.56,0.00015342,2]
[322991199,1713576650877,-672.89,0.00015342,2]
[322991200,1713576650887,-1098.45,0.00015342,2]
[322991201,1713576650897,-500.0,0.00015342,2]
[322991202,1713576650906,-500.0,0.00015342,2]
[322991203,1713576650916,-891.81,0.00015342,2]
[322991204,1713576650926,-694.76,0.00015342,2]
[322991205,1713576650936,-500.0,0.00015342,2]
[322991206,1713576650945,-500.0,0.00015342,2]
[322991207,1713576650954,-435.87,0.00015342,2]
[322991208,1713576650963,-2048.04,0.00015342,2]
[322991209,1713576650973,-500.0,0.00015342,2]
[322991210,1713576650982,-590.91,0.00015342,2]
[322991211,1713576650991,-500.0,0.00015342,2]
[322991212,1713576651000,-981.41,0.00015342,2]
[322991213,1713576651009,-500.0,0.00015342,2]
[322991214,1713576651019,-500.0,0.00015342,2]
[322991215,1713576651030,-500.0,0.00015342,2]
[322991216,1713576651039,-500.0,0.00015342,2]
[322991217,1713576651049,-500.0,0.00015342,2]
[322991218,1713576651058,-753.96,0.00015342,2]
[322991219,1713576651067,-980.91,0.00015342,2]
[322991220,1713576651077,-500.0,0.00015342,2]
[322991221,1713576651086,-500.0,0.00015342,2]
[322991222,1713576651095,-548.33,0.00015342,2]
[322991223,1713576651105,-692.9,0.00015342,2]
[322991224,1713576651114,-2532.29,0.00015342,2]
[322991225,1713576651123,-660.39,0.00015342,2]
[322991226,1713576651132,-500.0,0.00015342,2]
[322991227,1713576651142,-1226.51,0.00015342,2]
[322991228,1713576651151,-946.23,0.00015342,2]
[322991229,1713576651161,-500.0,0.00015342,2]
[322991230,1713576651170,-500.0,0.00015342,2]
[322991231,1713576651180,-1093.99,0.00015342,2]
[322991232,1713576651189,-500.0,0.00015342,2]
[322991233,1713576651198,-505.03,0.00015342,2]
[322991234,1713576651207,-571.11,0.00015342,2]
[322991235,1713576651216,-950.35,0.00015342,2]
[322991236,1713576651225,-744.65,0.00015342,2]
[322991237,1713576651236,-644.58,0.00015342,2]
[322991238,1713576651245,-2167.4,0.00015342,2]
[322991239,1713576651256,-1528.61,0.00015342,2]
[322991240,1713576651280,-500.0,0.00015342,2]
[322991241,1713576651290,-779.09,0.00015342,2]
[322991242,1713576651299,-500.0,0.00015342,2]
[322991243,1713576651308,-500.0,0.00015342,2]
[322991244,1713576651319,-500.0,0.00015342,2]
[322991245,1713576651329,-601.51,0.00015342,2]
[322991246,1713576651340,-728.3,0.00015342,2]
[322991247,1713576651350,-670.71,0.00015342,2]
[322991248,1713576651360,-860.2,0.00015342,2]
[322991249,1713576651371,-2371.26,0.00015342,2]
[322991250,1713576651381,-500.0,0.00015342,2]
[322991251,1713576651391,-500.0,0.00015342,2]
[322991252,1713576651401,-505.6,0.00015342,2]
[322991253,1713576651410,-655.51,0.00015342,2]
[322991254,1713576651420,-597.08,0.00015342,2]
[322991255,1713576651429,-500.0,0.00015342,2]
[322991256,1713576651438,-500.0,0.00015342,2]